[Event "Titled Tuesday Blitz January 17 Late 2023"]
[White "Kostiukov, Alexandr"]
[Black "Al-Tarboush, Ward"]
[WhiteFideId "14108100"]
[BlackFideId "7601450"]
[WhiteElo "2271"]
[BlackElo "2256"]
[Result "0-1"]
[Round "10"]
[TimeControl "180+2"]
[Date "2023.01.17"]
[WhiteClock "0:00:24"]
[BlackClock "0:02:17"]

1. g3 {[%clk 0:02:59]}  d5 {[%clk 0:02:58]} 2. Bg2 {[%clk 0:02:59]}  e5 {[%clk 0:02:58]} 3. c4 {[%clk 0:02:58]}  d4 {[%clk 0:02:56]} 4. d3 {[%clk 0:02:59]}  Nf6 {[%clk 0:02:55]} 5. Nf3 {[%clk 0:02:59]}  Nc6 {[%clk 0:02:54]} 6. O-O {[%clk 0:02:59]}  Bd6 {[%clk 0:02:53]} 7. e3 {[%clk 0:02:59]}  O-O {[%clk 0:02:51]} 8. exd4 {[%clk 0:02:58]}  exd4 {[%clk 0:02:52]} 9. Ng5 {[%clk 0:02:49]}  Bf5 {[%clk 0:02:50]} 10. Nd2 {[%clk 0:02:41]}  Bxd3 {[%clk 0:02:50]} 11. Re1 {[%clk 0:02:41]}  Nb4 {[%clk 0:02:49]} 12. Nde4 {[%clk 0:02:08]}  Nxe4 {[%clk 0:02:44]} 13. Nxe4 {[%clk 0:02:08]}  Re8 {[%clk 0:02:42]} 14. a3 {[%clk 0:01:52]}  Nc2 {[%clk 0:02:41]} 15. Qxd3 {[%clk 0:01:50]}  Nxe1 {[%clk 0:02:40]} 16. Qxd4 {[%clk 0:01:36]}  Nc2 {[%clk 0:02:40]} 17. Qd3 {[%clk 0:01:30]}  Nxa1 {[%clk 0:02:38]} 18. Bg5 {[%clk 0:01:24]}  f6 {[%clk 0:02:37]} 19. Be3 {[%clk 0:01:22]}  Be5 {[%clk 0:02:35]} 20. Qb1 {[%clk 0:01:17]}  Nb3 {[%clk 0:02:35]} 21. h4 {[%clk 0:01:11]}  Nd4 {[%clk 0:02:33]} 22. f4 {[%clk 0:01:02]}  Nf5 {[%clk 0:02:31]} 23. Bf2 {[%clk 0:00:58]}  Bd4 {[%clk 0:02:31]} 24. Qc2 {[%clk 0:00:37]}  Bxf2+ {[%clk 0:02:28]} 25. Nxf2 {[%clk 0:00:36]}  Nxg3 {[%clk 0:02:28]} 26. Kh2 {[%clk 0:00:33]}  Re2 {[%clk 0:02:24]} 27. Qb3 {[%clk 0:00:31]}  Rxf2 {[%clk 0:02:22]} 28. Kxg3 {[%clk 0:00:31]}  Qd2 {[%clk 0:02:21]} 29. c5+ {[%clk 0:00:24]}  Kh8 {[%clk 0:02:20]} 30. Qxb7 {[%clk 0:00:25]}  Qxf4+ {[%clk 0:02:19]} 31. Kh3 {[%clk 0:00:24]}  Re8 {[%clk 0:02:17]} 0-1


[Site "https://www.chess.com"]

[Event "Titled Tuesday Blitz January 17 Late 2023"]
[White "Van Dael, Siem"]
[Black "Musovic, Armin"]
[WhiteFideId "1049771"]
[BlackFideId "939935"]
[WhiteElo "2319"]
[BlackElo "2261"]
[Result "1/2-1/2"]
[Round "10"]
[TimeControl "180+2"]
[Date "2023.01.17"]
[WhiteClock "0:00:07"]
[BlackClock "0:00:28"]

1. e4 {[%clk 0:03:00]}  c6 {[%clk 0:03:00]} 2. d4 {[%clk 0:03:00]}  d5 {[%clk 0:03:01]} 3. e5 {[%clk 0:03:00]}  c5 {[%clk 0:03:01]} 4. dxc5 {[%clk 0:03:00]}  e6 {[%clk 0:03:01]} 5. a3 {[%clk 0:02:59]}  Nc6 {[%clk 0:03:01]} 6. f4 {[%clk 0:02:57]}  Bxc5 {[%clk 0:03:00]} 7. b4 {[%clk 0:02:57]}  Bb6 {[%clk 0:02:58]} 8. Qg4 {[%clk 0:02:52]}  Kf8 {[%clk 0:02:55]} 9. Bb2 {[%clk 0:02:49]}  Nh6 {[%clk 0:02:52]} 10. Qd1 {[%clk 0:02:39]}  Nf5 {[%clk 0:02:50]} 11. Nf3 {[%clk 0:02:35]}  Bd7 {[%clk 0:02:36]} 12. Bd3 {[%clk 0:02:33]}  Ne3 {[%clk 0:02:35]} 13. Qd2 {[%clk 0:02:29]}  Rc8 {[%clk 0:02:21]} 14. a4 {[%clk 0:02:09]}  Nxb4 {[%clk 0:02:17]} 15. Qxb4+ {[%clk 0:02:08]}  Kg8 {[%clk 0:02:15]} 16. a5 {[%clk 0:02:06]}  Nxg2+ {[%clk 0:02:09]} 17. Kf1 {[%clk 0:01:48]}  Bc5 {[%clk 0:02:01]} 18. Qd2 {[%clk 0:01:40]}  Nh4 {[%clk 0:01:39]} 19. Qe2 {[%clk 0:01:23]}  Bc6 {[%clk 0:01:25]} 20. Nbd2 {[%clk 0:01:21]}  Ng6 {[%clk 0:01:15]} 21. Bxg6 {[%clk 0:01:01]}  hxg6 {[%clk 0:01:15]} 22. h4 {[%clk 0:00:58]}  Be7 {[%clk 0:01:07]} 23. Nd4 {[%clk 0:00:48]}  Be8 {[%clk 0:01:06]} 24. a6 {[%clk 0:00:46]}  b5 {[%clk 0:01:02]} 25. N2f3 {[%clk 0:00:41]}  b4 {[%clk 0:01:00]} 26. Ng5 {[%clk 0:00:24]}  Qb6 {[%clk 0:00:58]} 27. Kg2 {[%clk 0:00:21]}  Rc4 {[%clk 0:00:56]} 28. Qd3 {[%clk 0:00:11]}  Rh5 {[%clk 0:00:52]} 29. Ngf3 {[%clk 0:00:11]}  Bc5 {[%clk 0:00:43]} 30. Rhd1 {[%clk 0:00:07]}  Bd7 {[%clk 0:00:41]} 31. Kg3 {[%clk 0:00:07]}  Be8 {[%clk 0:00:40]} 32. Rd2 {[%clk 0:00:05]}  Be7 {[%clk 0:00:34]} 33. Rh2 {[%clk 0:00:04]}  Bd7 {[%clk 0:00:27]} 34. Nd2 {[%clk 0:00:04]}  Rc8 {[%clk 0:00:24]} 35. N2b3 {[%clk 0:00:04]}  Kh7 {[%clk 0:00:21]} 36. Nf3 {[%clk 0:00:03]}  f6 {[%clk 0:00:20]} 37. Bd4 {[%clk 0:00:03]}  Qb8 {[%clk 0:00:19]} 38. exf6 {[%clk 0:00:03]}  gxf6 {[%clk 0:00:19]} 39. Re1 {[%clk 0:00:03]}  Bb5 {[%clk 0:00:20]} 40. Qd2 {[%clk 0:00:03]}  Bd7 {[%clk 0:00:18]} 41. Qd3 {[%clk 0:00:02]}  Qc7 {[%clk 0:00:18]} 42. Ree2 {[%clk 0:00:02]}  Qc4 {[%clk 0:00:19]} 43. Qxc4 {[%clk 0:00:02]}  dxc4 {[%clk 0:00:20]} 44. Nbd2 {[%clk 0:00:02]}  Bb5 {[%clk 0:00:17]} 45. Ne4 {[%clk 0:00:02]}  Kg7 {[%clk 0:00:17]} 46. Nfg5 {[%clk 0:00:02]}  Rc6 {[%clk 0:00:16]} 47. Nf3 {[%clk 0:00:02]}  Kf7 {[%clk 0:00:16]} 48. Re1 {[%clk 0:00:02]}  Bxa6 {[%clk 0:00:16]} 49. Ned2 {[%clk 0:00:02]}  b3 {[%clk 0:00:16]} 50. cxb3 {[%clk 0:00:02]}  c3 {[%clk 0:00:17]} 51. Nc4 {[%clk 0:00:03]}  Bxc4 {[%clk 0:00:18]} 52. bxc4 {[%clk 0:00:03]}  Rxc4 {[%clk 0:00:18]} 53. Rc1 {[%clk 0:00:03]}  a5 {[%clk 0:00:17]} 54. Rxc3 {[%clk 0:00:03]}  Rxc3 {[%clk 0:00:18]} 55. Bxc3 {[%clk 0:00:04]}  a4 {[%clk 0:00:18]} 56. Ra2 {[%clk 0:00:04]}  a3 {[%clk 0:00:19]} 57. Bd4 {[%clk 0:00:03]}  Rb5 {[%clk 0:00:19]} 58. Kg4 {[%clk 0:00:02]}  Rb3 {[%clk 0:00:17]} 59. Kg3 {[%clk 0:00:02]}  Bd6 {[%clk 0:00:17]} 60. Kg4 {[%clk 0:00:01]}  Rd3 {[%clk 0:00:17]} 61. Kg3 {[%clk 0:00:02]}  Ke7 {[%clk 0:00:17]} 62. Bf2 {[%clk 0:00:02]}  e5 {[%clk 0:00:17]} 63. fxe5 {[%clk 0:00:02]}  Bxe5+ {[%clk 0:00:18]} 64. Kg2 {[%clk 0:00:02]}  Bb2 {[%clk 0:00:18]} 65. Bc5+ {[%clk 0:00:02]}  Ke6 {[%clk 0:00:18]} 66. Kf2 {[%clk 0:00:03]}  Kd5 {[%clk 0:00:18]} 67. Bb4 {[%clk 0:00:04]}  Kc4 {[%clk 0:00:18]} 68. Bxa3 {[%clk 0:00:04]}  Bxa3 {[%clk 0:00:18]} 69. Re2 {[%clk 0:00:05]}  Bc5+ {[%clk 0:00:18]} 70. Kg2 {[%clk 0:00:05]}  Kd5 {[%clk 0:00:19]} 71. Re8 {[%clk 0:00:04]}  Re3 {[%clk 0:00:18]} 72. Rxe3 {[%clk 0:00:04]}  Bxe3 {[%clk 0:00:18]} 73. Kg3 {[%clk 0:00:05]}  Ke4 {[%clk 0:00:19]} 74. Kg4 {[%clk 0:00:04]}  f5+ {[%clk 0:00:17]} 75. Kg3 {[%clk 0:00:05]}  Bf4+ {[%clk 0:00:18]} 76. Kg2 {[%clk 0:00:05]}  Bh6 {[%clk 0:00:19]} 77. Kg3 {[%clk 0:00:05]}  Bf4+ {[%clk 0:00:19]} 78. Kg2 {[%clk 0:00:05]}  Bc7 {[%clk 0:00:20]} 79. Ng5+ {[%clk 0:00:04]}  Ke5 {[%clk 0:00:19]} 80. Kf3 {[%clk 0:00:04]}  Bd8 {[%clk 0:00:19]} 81. Nf7+ {[%clk 0:00:04]}  Kf6 {[%clk 0:00:20]} 82. Nxd8 {[%clk 0:00:05]}  g5 {[%clk 0:00:20]} 83. h5 {[%clk 0:00:05]}  Kg7 {[%clk 0:00:20]} 84. Ne6+ {[%clk 0:00:03]}  Kh6 {[%clk 0:00:21]} 85. Kg3 {[%clk 0:00:03]}  Kxh5 {[%clk 0:00:21]} 86. Kf3 {[%clk 0:00:03]}  Kh4 {[%clk 0:00:21]} 87. Nxg5 {[%clk 0:00:02]}  Kxg5 {[%clk 0:00:21]} 88. Kg3 {[%clk 0:00:03]}  f4+ {[%clk 0:00:22]} 89. Kf3 {[%clk 0:00:04]}  Kf5 {[%clk 0:00:23]} 90. Kf2 {[%clk 0:00:04]}  Kg4 {[%clk 0:00:24]} 91. Kg2 {[%clk 0:00:05]}  f3+ {[%clk 0:00:25]} 92. Kf2 {[%clk 0:00:05]}  Kf4 {[%clk 0:00:26]} 93. Kf1 {[%clk 0:00:06]}  Ke3 {[%clk 0:00:27]} 94. Ke1 {[%clk 0:00:06]}  f2+ {[%clk 0:00:27]} 95. Kf1 {[%clk 0:00:07]}  Kd2 {[%clk 0:00:28]} 96. Kxf2 {[%clk 0:00:07]} 1/2-1/2


[Site "https://www.chess.com"]

[Event "Titled Tuesday Blitz January 17 Late 2023"]
[White "Milikow, Yoav"]
[Black "Slovineanu, Viacheslav"]
[WhiteFideId "2822237"]
[BlackFideId "13900510"]
[WhiteElo "2394"]
[BlackElo "2412"]
[Result "1-0"]
[Round "10"]
[TimeControl "180+2"]
[Date "2023.01.17"]
[WhiteClock "0:02:05"]
[BlackClock "0:00:02"]

1. d4 {[%clk 0:02:55]}  Nf6 {[%clk 0:02:59]} 2. c4 {[%clk 0:02:55]}  e6 {[%clk 0:02:59]} 3. Nc3 {[%clk 0:02:56]}  d5 {[%clk 0:02:59]} 4. e3 {[%clk 0:02:57]}  c5 {[%clk 0:02:55]} 5. Nf3 {[%clk 0:02:58]}  cxd4 {[%clk 0:02:55]} 6. Nxd4 {[%clk 0:02:58]}  Be7 {[%clk 0:02:51]} 7. cxd5 {[%clk 0:02:58]}  Nxd5 {[%clk 0:02:51]} 8. Be2 {[%clk 0:02:59]}  Nxc3 {[%clk 0:02:48]} 9. bxc3 {[%clk 0:03:00]}  O-O {[%clk 0:02:43]} 10. O-O {[%clk 0:03:00]}  Bd7 {[%clk 0:02:37]} 11. Bb2 {[%clk 0:03:00]}  Nc6 {[%clk 0:02:33]} 12. Rb1 {[%clk 0:02:58]}  b6 {[%clk 0:02:16]} 13. c4 {[%clk 0:02:53]}  Bf6 {[%clk 0:01:41]} 14. Ba3 {[%clk 0:02:46]}  Nxd4 {[%clk 0:01:34]} 15. exd4 {[%clk 0:02:44]}  Re8 {[%clk 0:01:35]} 16. Qd3 {[%clk 0:02:41]}  g6 {[%clk 0:01:32]} 17. Rfc1 {[%clk 0:02:42]}  e5 {[%clk 0:01:30]} 18. dxe5 {[%clk 0:02:39]}  Bxe5 {[%clk 0:01:26]} 19. Bf3 {[%clk 0:02:38]}  Bf5 {[%clk 0:01:20]} 20. Qf1 {[%clk 0:02:33]}  Bxb1 {[%clk 0:01:12]} 21. Bxa8 {[%clk 0:02:33]}  Qxa8 {[%clk 0:01:06]} 22. Rxb1 {[%clk 0:02:33]}  Qe4 {[%clk 0:01:03]} 23. c5 {[%clk 0:02:31]}  Bd4 {[%clk 0:00:56]} 24. cxb6 {[%clk 0:02:28]}  Bxb6 {[%clk 0:00:54]} 25. Bb2 {[%clk 0:02:27]}  Qc2 {[%clk 0:00:50]} 26. Ba1 {[%clk 0:02:23]}  Re2 {[%clk 0:00:42]} 27. Rc1 {[%clk 0:02:23]}  Rxf2 {[%clk 0:00:12]} 28. Rxc2 {[%clk 0:02:23]}  Rxc2+ {[%clk 0:00:09]} 29. Kh1 {[%clk 0:02:23]}  Be3 {[%clk 0:00:07]} 30. Bb2 {[%clk 0:02:12]}  Rxb2 {[%clk 0:00:07]} 31. g3 {[%clk 0:02:12]}  Rc2 {[%clk 0:00:06]} 32. Qd3 {[%clk 0:02:12]}  Rc1+ {[%clk 0:00:06]} 33. Kg2 {[%clk 0:02:12]}  Bb6 {[%clk 0:00:06]} 34. a4 {[%clk 0:02:12]}  h5 {[%clk 0:00:05]} 35. Qd2 {[%clk 0:02:09]}  Rg1+ {[%clk 0:00:04]} 36. Kh3 {[%clk 0:02:09]}  Ra1 {[%clk 0:00:04]} 37. Qc2 {[%clk 0:02:07]}  Re1 {[%clk 0:00:02]} 38. Qc3 {[%clk 0:02:05]} 1-0


[Site "https://www.chess.com"]

[Event "Titled Tuesday Blitz January 17 Late 2023"]
[White "Prado Lobo, Jonas"]
[Black "Radovanovic, Dusan"]
[WhiteFideId "32050666"]
[BlackFideId "926868"]
[WhiteElo "2313"]
[BlackElo "2311"]
[Result "1-0"]
[Round "10"]
[TimeControl "180+2"]
[Date "2023.01.17"]
[WhiteClock "0:00:19"]
[BlackClock "0:00:05"]

1. Nf3 {[%clk 0:03:00]}  Nf6 {[%clk 0:02:59]} 2. c4 {[%clk 0:03:01]}  g6 {[%clk 0:02:59]} 3. d4 {[%clk 0:03:01]}  Bg7 {[%clk 0:02:59]} 4. g3 {[%clk 0:03:01]}  O-O {[%clk 0:03:00]} 5. Bg2 {[%clk 0:03:02]}  d6 {[%clk 0:03:00]} 6. O-O {[%clk 0:03:02]}  Nc6 {[%clk 0:03:01]} 7. Nc3 {[%clk 0:03:02]}  e5 {[%clk 0:03:01]} 8. dxe5 {[%clk 0:03:03]}  dxe5 {[%clk 0:03:02]} 9. Bg5 {[%clk 0:03:03]}  Be6 {[%clk 0:03:00]} 10. Qa4 {[%clk 0:03:04]}  Qc8 {[%clk 0:02:39]} 11. Rfd1 {[%clk 0:03:02]}  Nd7 {[%clk 0:02:38]} 12. Nd2 {[%clk 0:02:57]}  Nc5 {[%clk 0:02:22]} 13. Qa3 {[%clk 0:02:55]}  Nd7 {[%clk 0:02:02]} 14. Nde4 {[%clk 0:02:45]}  h6 {[%clk 0:01:49]} 15. Be3 {[%clk 0:02:43]}  f5 {[%clk 0:01:47]} 16. Nc5 {[%clk 0:02:42]}  Nxc5 {[%clk 0:01:48]} 17. Qxc5 {[%clk 0:02:41]}  e4 {[%clk 0:01:39]} 18. Bf4 {[%clk 0:02:32]}  g5 {[%clk 0:01:36]} 19. Bc1 {[%clk 0:02:24]}  Qe8 {[%clk 0:01:32]} 20. Nd5 {[%clk 0:02:23]}  Qf7 {[%clk 0:01:31]} 21. Rb1 {[%clk 0:02:17]}  Rae8 {[%clk 0:01:31]} 22. b4 {[%clk 0:02:17]}  Ne5 {[%clk 0:01:15]} 23. Bb2 {[%clk 0:02:08]}  c6 {[%clk 0:01:15]} 24. Ne3 {[%clk 0:01:40]}  Nxc4 {[%clk 0:01:02]} 25. Bxg7 {[%clk 0:01:39]}  Kxg7 {[%clk 0:01:02]} 26. Qxa7 {[%clk 0:01:35]}  Nxe3 {[%clk 0:00:55]} 27. Qxe3 {[%clk 0:01:36]}  Bxa2 {[%clk 0:00:53]} 28. Ra1 {[%clk 0:01:34]}  Bd5 {[%clk 0:00:52]} 29. b5 {[%clk 0:01:31]}  Kg8 {[%clk 0:00:50]} 30. bxc6 {[%clk 0:01:28]}  Bxc6 {[%clk 0:00:49]} 31. Qc5 {[%clk 0:01:25]}  f4 {[%clk 0:00:47]} 32. g4 {[%clk 0:01:09]}  Qe7 {[%clk 0:00:39]} 33. Qb6 {[%clk 0:01:00]}  Rd8 {[%clk 0:00:36]} 34. e3 {[%clk 0:00:56]}  f3 {[%clk 0:00:33]} 35. Bf1 {[%clk 0:00:56]}  Rd7 {[%clk 0:00:20]} 36. Bc4+ {[%clk 0:00:52]}  Kh7 {[%clk 0:00:19]} 37. Qa5 {[%clk 0:00:43]}  h5 {[%clk 0:00:17]} 38. gxh5 {[%clk 0:00:37]}  Rxd1+ {[%clk 0:00:14]} 39. Rxd1 {[%clk 0:00:37]}  g4 {[%clk 0:00:13]} 40. Rd4 {[%clk 0:00:20]}  Qf6 {[%clk 0:00:05]} 41. Qc7+ {[%clk 0:00:19]}  Kh6 {[%clk 0:00:05]} 42. Rd6 {[%clk 0:00:19]} 1-0


[Site "https://www.chess.com"]

[Event "Titled Tuesday Blitz January 17 Late 2023"]
[White "Vega Gutierrez, Sabrina"]
[Black "Ibadov, Dashgyn"]
[WhiteFideId "2219026"]
[BlackFideId "24107514"]
[WhiteElo "2377"]
[BlackElo "2391"]
[Result "1-0"]
[Round "10"]
[TimeControl "180+2"]
[Date "2023.01.17"]
[WhiteClock "0:00:33"]
[BlackClock "0:00:03"]

1. e4 {[%clk 0:03:00]}  e5 {[%clk 0:02:56]} 2. Nf3 {[%clk 0:03:00]}  Nc6 {[%clk 0:02:57]} 3. Nc3 {[%clk 0:03:01]}  Nf6 {[%clk 0:02:56]} 4. g3 {[%clk 0:03:01]}  d5 {[%clk 0:02:55]} 5. exd5 {[%clk 0:03:01]}  Nxd5 {[%clk 0:02:55]} 6. Bg2 {[%clk 0:03:02]}  Nxc3 {[%clk 0:02:56]} 7. bxc3 {[%clk 0:03:03]}  Bc5 {[%clk 0:02:49]} 8. O-O {[%clk 0:03:03]}  O-O {[%clk 0:02:41]} 9. d3 {[%clk 0:03:02]}  Bg4 {[%clk 0:02:39]} 10. h3 {[%clk 0:03:01]}  Be6 {[%clk 0:02:38]} 11. Re1 {[%clk 0:02:59]}  Qd6 {[%clk 0:01:49]} 12. Ng5 {[%clk 0:02:58]}  Bd5 {[%clk 0:01:46]} 13. Qh5 {[%clk 0:02:50]}  h6 {[%clk 0:01:41]} 14. Ne4 {[%clk 0:02:35]}  Bxe4 {[%clk 0:01:41]} 15. Bxe4 {[%clk 0:02:35]}  f5 {[%clk 0:01:24]} 16. Bg2 {[%clk 0:02:15]}  f4 {[%clk 0:01:19]} 17. gxf4 {[%clk 0:02:11]}  exf4 {[%clk 0:00:58]} 18. d4 {[%clk 0:02:11]}  Bb6 {[%clk 0:00:53]} 19. a4 {[%clk 0:02:05]}  f3 {[%clk 0:00:25]} 20. Bxf3 {[%clk 0:02:02]}  Qf6 {[%clk 0:00:26]} 21. Bd5+ {[%clk 0:01:45]}  Kh8 {[%clk 0:00:26]} 22. Be3 {[%clk 0:01:45]}  Ne7 {[%clk 0:00:21]} 23. Be4 {[%clk 0:01:43]}  c6 {[%clk 0:00:16]} 24. Kh1 {[%clk 0:01:16]}  Bc7 {[%clk 0:00:16]} 25. Rg1 {[%clk 0:01:16]}  Rae8 {[%clk 0:00:14]} 26. Rg4 {[%clk 0:01:14]}  Qd6 {[%clk 0:00:09]} 27. Bf4 {[%clk 0:01:03]}  Rxf4 {[%clk 0:00:06]} 28. Qxe8+ {[%clk 0:01:03]}  Ng8 {[%clk 0:00:07]} 29. Qg6 {[%clk 0:00:42]}  Qxg6 {[%clk 0:00:06]} 30. Bxg6 {[%clk 0:00:43]}  Rxf2 {[%clk 0:00:06]} 31. Rg2 {[%clk 0:00:43]}  Rf3 {[%clk 0:00:06]} 32. Re1 {[%clk 0:00:36]}  Rxh3+ {[%clk 0:00:05]} 33. Kg1 {[%clk 0:00:36]}  Nf6 {[%clk 0:00:04]} 34. Re7 {[%clk 0:00:36]}  Bf4 {[%clk 0:00:03]} 35. Rxb7 {[%clk 0:00:33]} 1-0


[Site "https://www.chess.com"]

[Event "Titled Tuesday Blitz January 17 Late 2023"]
[White "Berezin, Viktor"]
[Black "Garcia Almaguer, Juan Manuel"]
[WhiteFideId "14107872"]
[BlackFideId "5110491"]
[WhiteElo "2307"]
[BlackElo "2090"]
[Result "1-0"]
[Round "10"]
[TimeControl "180+2"]
[Date "2023.01.17"]
[WhiteClock "0:00:50"]
[BlackClock "0:01:12"]

1. d4 {[%clk 0:03:00]}  Nf6 {[%clk 0:02:59]} 2. c4 {[%clk 0:03:00]}  e6 {[%clk 0:02:58]} 3. Nf3 {[%clk 0:03:00]}  Bb4+ {[%clk 0:02:56]} 4. Nbd2 {[%clk 0:02:59]}  O-O {[%clk 0:02:54]} 5. g3 {[%clk 0:02:59]}  d5 {[%clk 0:02:53]} 6. Bg2 {[%clk 0:02:59]}  dxc4 {[%clk 0:02:54]} 7. O-O {[%clk 0:02:59]}  Bxd2 {[%clk 0:02:52]} 8. Bxd2 {[%clk 0:02:57]}  c6 {[%clk 0:02:51]} 9. Bf4 {[%clk 0:02:57]}  Nd5 {[%clk 0:02:48]} 10. Rc1 {[%clk 0:02:52]}  Nxf4 {[%clk 0:02:47]} 11. gxf4 {[%clk 0:02:53]}  b5 {[%clk 0:02:47]} 12. a4 {[%clk 0:02:46]}  a6 {[%clk 0:02:46]} 13. b3 {[%clk 0:02:46]}  Qd6 {[%clk 0:02:33]} 14. e3 {[%clk 0:02:35]}  cxb3 {[%clk 0:02:28]} 15. Qxb3 {[%clk 0:02:35]}  Bb7 {[%clk 0:02:26]} 16. Ne5 {[%clk 0:02:34]}  f6 {[%clk 0:02:25]} 17. Nd3 {[%clk 0:02:34]}  Nd7 {[%clk 0:02:25]} 18. f5 {[%clk 0:02:25]}  Rfe8 {[%clk 0:02:13]} 19. fxe6 {[%clk 0:01:50]}  Qxe6 {[%clk 0:02:08]} 20. Qxe6+ {[%clk 0:01:50]}  Rxe6 {[%clk 0:02:08]} 21. d5 {[%clk 0:01:50]}  cxd5 {[%clk 0:01:46]} 22. Rc7 {[%clk 0:01:48]}  Rb8 {[%clk 0:01:28]} 23. Rxd7 {[%clk 0:01:29]}  Bc6 {[%clk 0:01:28]} 24. Ra7 {[%clk 0:01:27]}  d4 {[%clk 0:01:16]} 25. Bxc6 {[%clk 0:01:17]}  Rxc6 {[%clk 0:01:17]} 26. axb5 {[%clk 0:01:17]}  axb5 {[%clk 0:01:17]} 27. exd4 {[%clk 0:01:14]}  Rd8 {[%clk 0:01:15]} 28. Re1 {[%clk 0:01:12]}  Rcd6 {[%clk 0:01:12]} 29. Ree7 {[%clk 0:01:07]}  Rxd4 {[%clk 0:01:13]} 30. Rxg7+ {[%clk 0:01:07]}  Kh8 {[%clk 0:01:12]} 31. Rxh7+ {[%clk 0:01:07]}  Kg8 {[%clk 0:01:13]} 32. Rag7+ {[%clk 0:00:54]}  Kf8 {[%clk 0:01:12]} 33. Nc5 {[%clk 0:00:50]} 1-0


[Site "https://www.chess.com"]

[Event "Titled Tuesday Blitz January 17 Late 2023"]
[White "Golubev, Mikhail"]
[Black "Chernomordik, Pavel"]
[WhiteFideId "14100983"]
[BlackFideId "2804530"]
[WhiteElo "2461"]
[BlackElo "2150"]
[Result "1-0"]
[Round "10"]
[TimeControl "180+2"]
[Date "2023.01.17"]
[WhiteClock "0:00:04"]
[BlackClock "0:00:02"]

1. e4 {[%clk 0:03:00]}  g6 {[%clk 0:02:59]} 2. d4 {[%clk 0:03:00]}  Bg7 {[%clk 0:02:59]} 3. Nc3 {[%clk 0:02:54]}  d6 {[%clk 0:02:59]} 4. Nf3 {[%clk 0:02:51]}  a6 {[%clk 0:02:59]} 5. a4 {[%clk 0:02:43]}  b6 {[%clk 0:02:58]} 6. h3 {[%clk 0:02:33]}  e6 {[%clk 0:02:54]} 7. Be3 {[%clk 0:02:33]}  Bb7 {[%clk 0:02:54]} 8. Bd3 {[%clk 0:02:28]}  Nd7 {[%clk 0:02:54]} 9. Qd2 {[%clk 0:02:19]}  c5 {[%clk 0:02:51]} 10. d5 {[%clk 0:02:13]}  e5 {[%clk 0:02:51]} 11. g4 {[%clk 0:02:08]}  Qc7 {[%clk 0:02:46]} 12. Qe2 {[%clk 0:02:01]}  h5 {[%clk 0:02:38]} 13. g5 {[%clk 0:01:52]}  h4 {[%clk 0:02:36]} 14. Rg1 {[%clk 0:01:51]}  Bc8 {[%clk 0:02:33]} 15. Nd2 {[%clk 0:01:47]}  Nb8 {[%clk 0:02:29]} 16. f4 {[%clk 0:01:36]}  Bxh3 {[%clk 0:02:07]} 17. f5 {[%clk 0:01:30]}  Qd7 {[%clk 0:01:34]} 18. Qf3 {[%clk 0:01:23]}  Bxf5 {[%clk 0:01:28]} 19. exf5 {[%clk 0:01:22]}  e4 {[%clk 0:01:22]} 20. Qxe4+ {[%clk 0:01:10]}  Be5 {[%clk 0:01:20]} 21. fxg6 {[%clk 0:01:10]}  h3 {[%clk 0:01:02]} 22. Nc4 {[%clk 0:00:59]}  h2 {[%clk 0:00:59]} 23. Rh1 {[%clk 0:00:50]}  Qh3 {[%clk 0:00:55]} 24. gxf7+ {[%clk 0:00:43]}  Kxf7 {[%clk 0:00:52]} 25. Nxe5+ {[%clk 0:00:43]}  dxe5 {[%clk 0:00:50]} 26. O-O-O {[%clk 0:00:33]}  Nd7 {[%clk 0:00:49]} 27. Qg6+ {[%clk 0:00:21]}  Ke7 {[%clk 0:00:46]} 28. Qg7+ {[%clk 0:00:20]}  Kd8 {[%clk 0:00:45]} 29. Bd2 {[%clk 0:00:16]}  Ne7 {[%clk 0:00:33]} 30. d6 {[%clk 0:00:14]}  Nc6 {[%clk 0:00:32]} 31. Bf5 {[%clk 0:00:14]}  Qxf5 {[%clk 0:00:25]} 32. Qxh8+ {[%clk 0:00:14]}  Nf8 {[%clk 0:00:25]} 33. Rxh2 {[%clk 0:00:12]}  Nd4 {[%clk 0:00:25]} 34. Be3 {[%clk 0:00:12]}  Nf3 {[%clk 0:00:21]} 35. Rf2 {[%clk 0:00:10]}  e4 {[%clk 0:00:20]} 36. Nd5 {[%clk 0:00:10]}  Kd7 {[%clk 0:00:15]} 37. Nxb6+ {[%clk 0:00:10]}  Kc6 {[%clk 0:00:15]} 38. Nxa8 {[%clk 0:00:10]}  Ng6 {[%clk 0:00:12]} 39. Qg8 {[%clk 0:00:07]}  Nf4 {[%clk 0:00:04]} 40. Qb8 {[%clk 0:00:04]}  Nd3+ {[%clk 0:00:02]} 41. cxd3 {[%clk 0:00:04]} 1-0


[Site "https://www.chess.com"]

[Event "Titled Tuesday Blitz January 17 Late 2023"]
[White "Bambino Filho, Antonio Carlos"]
[Black "Vovk, Orest"]
[WhiteFideId "2113163"]
[BlackFideId "14113490"]
[WhiteElo "2144"]
[BlackElo "2315"]
[Result "1-0"]
[Round "10"]
[TimeControl "180+2"]
[Date "2023.01.17"]
[WhiteClock "0:01:02"]
[BlackClock "0:01:12"]

1. e4 {[%clk 0:02:54]}  g5 {[%clk 0:02:58]} 2. d4 {[%clk 0:02:53]}  g4 {[%clk 0:02:57]} 3. Bc4 {[%clk 0:02:51]}  Bg7 {[%clk 0:02:54]} 4. Ne2 {[%clk 0:02:50]}  h5 {[%clk 0:02:53]} 5. O-O {[%clk 0:02:49]}  c5 {[%clk 0:02:53]} 6. c3 {[%clk 0:02:48]}  Nc6 {[%clk 0:02:49]} 7. Be3 {[%clk 0:02:44]}  cxd4 {[%clk 0:02:45]} 8. cxd4 {[%clk 0:02:44]}  d6 {[%clk 0:02:44]} 9. Nbc3 {[%clk 0:02:43]}  Nf6 {[%clk 0:02:43]} 10. Ng3 {[%clk 0:02:17]}  h4 {[%clk 0:02:25]} 11. Nf5 {[%clk 0:02:17]}  Bxf5 {[%clk 0:02:25]} 12. exf5 {[%clk 0:02:18]}  h3 {[%clk 0:02:23]} 13. g3 {[%clk 0:02:18]}  Bh6 {[%clk 0:02:21]} 14. Qb3 {[%clk 0:02:12]}  Bxe3 {[%clk 0:02:16]} 15. fxe3 {[%clk 0:02:10]}  Na5 {[%clk 0:02:08]} 16. Bxf7+ {[%clk 0:02:04]}  Kf8 {[%clk 0:02:08]} 17. Qe6 {[%clk 0:02:04]}  Qc8 {[%clk 0:02:04]} 18. Qxc8+ {[%clk 0:02:01]}  Rxc8 {[%clk 0:02:04]} 19. Be6 {[%clk 0:02:02]}  Rc6 {[%clk 0:02:01]} 20. Rac1 {[%clk 0:02:01]}  Nc4 {[%clk 0:01:59]} 21. Bxc4 {[%clk 0:01:54]}  Rxc4 {[%clk 0:01:58]} 22. Nb5 {[%clk 0:01:54]}  Rxc1 {[%clk 0:01:53]} 23. Rxc1 {[%clk 0:01:55]}  Kf7 {[%clk 0:01:51]} 24. Rc7 {[%clk 0:01:51]}  Ne4 {[%clk 0:01:50]} 25. Nc3 {[%clk 0:01:37]}  Nd2 {[%clk 0:01:47]} 26. Nd5 {[%clk 0:01:26]}  Nf3+ {[%clk 0:01:47]} 27. Kh1 {[%clk 0:01:22]}  Rh5 {[%clk 0:01:39]} 28. Rxe7+ {[%clk 0:01:05]}  Kf8 {[%clk 0:01:38]} 29. e4 {[%clk 0:01:05]}  Nxd4 {[%clk 0:01:37]} 30. Rxb7 {[%clk 0:01:05]}  Nxf5 {[%clk 0:01:21]} 31. exf5 {[%clk 0:01:02]}  Rxf5 {[%clk 0:01:20]} 32. Nf4 {[%clk 0:01:02]}  Re5 {[%clk 0:01:12]} 33. Ng6+ {[%clk 0:01:02]} 1-0


[Site "https://www.chess.com"]